bitfinex/quotes_ETHUSD_20241223
["timestamp","ask_amount","ask_price","bid_price","bid_amount"]
[1734974472510,1.83361296,3379.6,3378.3,2.96]
[1734974472817,1.83361296,3379.6,3378.4,2.78521697]
[1734974472968,1.83361296,3379.6,3378.8,2.75577066]
[1734974473173,2.75577066,3381.0,3377.9,2.75577066]
[1734974473174,0.8036,3380.9,3379.2,2.75577066]
[1734974473364,0.8036,3380.9,3379.6,2.75577066]
[1734974473606,0.19981767,3381.2,3379.6,2.75577066]
[1734974473792,2.95774,3381.0,3379.7,0.04923168]
[1734974473990,0.3527334,3380.9,3379.7,0.04923168]
[1734974474216,0.3527334,3380.9,3378.9,0.27557707]
[1734974474217,2.95833,3380.3,3378.9,0.27557707]
[1734974474368,2.95833,3380.3,3379.8,0.04913971]
[1734974474566,2.95767,3381.1,3378.9,0.27557707]
[1734974474766,2.95824,3380.4,3379.9,0.04904775]
[1734974475001,2.95824,3380.4,3379.1,2.95931]
[1734974475002,2.99529506,3380.3,3379.1,2.95931]
[1734974475161,2.95787,3380.8,3380.0,0.0489558]
[1734974475162,0.29952951,3380.2,3380.0,0.0489558]
[1734974475368,2.95805,3380.6,3378.9,3.23510707]
[1734974475604,2.99502507,3380.7,3378.9,3.23510707]
[1734974475605,2.95835,3380.3,3380.1,0.04886385]
[1734974475794,2.95823,3380.4,3378.7,2.95971]
[1734974475977,3.0,3380.3,3380.2,0.0487719]
[1734974476163,3.0,3380.3,3378.7,2.95971]
[1734974476367,0.595823,3380.2,3378.8,0.90783852]
[1734974476563,3.0,3380.5,3378.8,0.90783852]
[1734974476764,5.95827,3380.4,3379.1,2.95929]
[1734974477011,5.95827,3380.4,3378.8,0.90783852]
[1734974477211,2.95771,3381.0,3379.2,3.0]
[1734974477410,2.95772,3381.0,3379.6,3.0]
[1734974477712,3.8977093,3381.2,3379.7,3.57061752]
[1734974477929,2.95762,3381.1,3379.8,2.95875]
[1734974478156,0.03697589,3381.1,3379.7,0.61186752]
[1734974478364,3.8976993,3381.2,3379.9,2.95866]
[1734974478365,3.1274993,3381.2,3379.9,2.95866]
[1734974478562,0.1699293,3381.2,3380.1,2.95849]
[1734974478861,0.1699293,3381.2,3380.1,3.0]
[1734974479068,0.1699293,3381.2,3380.1,5.95843]
[1734974479928,0.03697272,3381.1,3379.5,3.11867522]
[1734974480258,0.1699293,3381.2,3379.6,6.27076752]
[1734974480417,0.1699293,3381.2,3380.1,2.95846]
[1734974480847,0.1699293,3381.2,3379.6,6.27076752]
[1734974480848,3.1274593,3381.2,3379.9,2.95865]
[1734974481057,0.1699293,3381.2,3380.2,3.0]
[1734974481960,0.1699293,3381.2,3380.5,2.9581]
[1734974482128,0.1699293,3381.2,3380.5,3.25391]
[1734974482512,0.1699293,3381.2,3380.3,2.95831]
[1734974482746,0.1699293,3381.2,3380.2,2.95836]
[1734974483467,0.1699293,3381.2,3380.0,6.07722522]
[1734974483756,0.03697302,3381.1,3379.5,6.07764522]
[1734974483920,2.95796,3380.7,3379.5,6.07764522]
[1734974484111,0.43435958,3381.0,3379.5,3.11867522]
[1734974484318,2.95787,3380.8,3379.5,6.07768522]
[1734974484519,0.03698034,3380.8,3379.5,3.11867522]
[1734974484822,2.95796,3380.7,3379.5,3.11867522]
[1734974485015,0.295796,3380.6,3379.5,3.11867522]
[1734974485605,0.03698032,3380.9,3379.5,3.11867522]
[1734974485886,2.95797,3380.7,3379.5,3.11867522]
[1734974486642,2.95797,3380.7,3379.5,6.07766522]
[1734974487050,3.9368393,3381.2,3379.8,2.95871]
[1734974487051,0.9792293,3381.2,3379.8,2.95871]
[1734974487467,1.01620756,3381.2,3379.6,2.95892]
[1734974487781,2.95782,3380.9,3379.7,2.95882]
[1734974488841,0.03697826,3381.1,3379.0,3.11867522]
[1734974488842,0.86347826,3380.8,3379.0,3.11867522]
[1734974489341,2.95805,3380.6,3379.0,3.11867522]
[1734974489566,0.55,3380.7,3378.5,3.11867522]
[1734974489567,2.95831,3380.3,3378.5,3.11867522]
[1734974489781,0.8265,3380.4,3378.5,3.11867522]
[1734974489968,2.99532626,3380.3,3379.0,2.95944]
[1734974490173,0.8265,3380.4,3379.0,3.11867522]
[1734974490340,0.03698212,3380.3,3379.0,3.11867522]
[1734974490560,0.38217121,3380.2,3378.5,3.11867522]
[1734974490758,0.7536,3379.6,3378.5,6.07855522]
[1734974490969,0.7536,3379.6,3378.6,2.95976]
[1734974491170,0.7536,3379.6,3378.7,2.95971]
[1734974491375,0.7536,3379.6,3378.5,6.07854522]
[1734974491583,0.7918,3380.6,3378.5,3.11867522]
[1734974491795,2.9584,3380.2,3378.6,0.31186752]
[1734974492188,2.95824,3380.4,3379.2,2.95927]
[1734974492386,2.95824,3380.4,3378.6,0.31186752]
[1734974492387,0.37918,3380.5,3378.8,2.95957]
[1734974492589,0.7918,3380.6,3379.5,2.95899]
[1734974492958,3.74986,3380.6,3379.3,2.9591]
[1734974493169,3.74986,3380.6,3379.0,3.11867522]
[1734974493170,0.7918,3380.6,3379.0,3.11867522]
[1734974493375,2.95838,3380.3,3378.9,2.95952]
[1734974493581,0.7542,3380.1,3378.9,2.95952]
[1734974493916,0.03698832,3380.2,3378.9,2.95952]
[1734974494122,0.03698832,3380.4,3378.9,2.95952]
[1734974494420,2.95826,3380.4,3378.7,2.95971]
[1734974494726,0.03698204,3380.7,3379.0,3.11867522]
[1734974494908,2.95805,3380.7,3379.3,2.95911]
[1734974495106,0.33278772,3380.7,3379.4,3.550906]
[1734974495290,0.33278772,3380.7,3379.0,3.11867522]
[1734974495495,2.9586,3380.0,3379.0,3.11867522]
[1734974495710,2.95838,3380.3,3378.6,0.31186752]
[1734974495907,2.95844,3380.2,3378.6,3.27165752]
[1734974496424,2.95844,3380.2,3379.2,2.74855612]
[1734974496585,2.95813,3380.6,3379.2,2.74855612]
[1734974496810,2.99516285,3380.5,3379.3,3.23404561]
[1734974497126,0.8266,3380.4,3379.3,3.23404561]
[1734974497285,0.03698443,3380.3,3379.3,3.23404561]
[1734974497626,0.03698443,3380.3,3379.2,2.74855612]
[1734974497627,2.99533408,3380.3,3379.2,2.74855612]
[1734974497810,0.03698408,3380.3,3379.2,2.74855612]
[1734974497998,0.86358645,3380.4,3379.3,2.95919]
[1734974498194,0.38218065,3380.4,3379.4,2.9591]
[1734974498388,2.95813,3380.6,3379.4,2.9591]
[1734974498587,2.95797,3380.7,3379.4,2.9591]
[1734974498840,2.99505304,3380.6,3379.4,2.9591]
[1734974498988,0.03698303,3380.5,3379.2,2.74855612]
[1734974499335,2.95813,3380.6,3379.3,2.95917]
[1734974499523,2.95815,3380.5,3379.4,0.57077261]
[1734974499728,2.95815,3380.5,3379.4,3.52986261]
[1734974500127,0.8266,3381.1,3379.6,2.74855612]
[1734974500440,2.95785,3380.9,3379.7,2.95881]
[1734974500668,0.0369804,3380.8,3379.7,2.95881]
[1734974500955,2.95788,3380.8,3379.8,0.57073661]
[1734974501094,0.0369804,3380.7,3379.6,2.74855612]
[1734974501294,0.03698045,3381.0,3379.4,0.57077261]
[1734974501499,2.95805,3380.6,3379.4,2.95908]
[1734974501795,2.95821,3380.5,3379.3,2.95918]
[1734974502001,2.95794,3380.8,3379.2,2.84855612]
[1734974502225,0.03698094,3380.7,3379.2,2.84855612]
[1734974502434,2.95796,3380.8,3379.5,2.959]
[1734974502636,2.95796,3380.8,3379.6,0.2959]
[1734974502936,2.95797,3380.7,3379.3,2.95919]
[1734974503143,2.95797,3380.7,3379.2,2.84855612]
[1734974503352,3.71041,3380.9,3379.6,2.95885]
[1734974503506,0.03698016,3380.7,3379.3,2.95911]
[1734974503702,0.03698016,3380.7,3379.2,2.84855612]
[1734974503956,2.95836,3380.3,3379.2,2.84855612]
[1734974504116,0.03698492,3380.2,3379.2,2.84855612]
[1734974504308,2.95851,3380.1,3379.2,0.1]
[1734974504507,3.77951,3380.1,3379.2,0.1]
[1734974504705,0.821,3380.1,3379.2,0.1]
[1734974504939,2.95873,3379.9,3379.2,0.1]
[1734974505457,1.198939,3380.1,3379.2,0.1]
[1734974505458,0.821,3379.3,3379.2,0.1]
[1734974505663,3.78019,3379.3,3379.2,0.1]
[1734974506010,0.821,3379.3,3379.2,0.1]
[1734974506323,1.199,3379.3,3379.2,0.1]
[1734974506528,3.78019,3379.3,3379.2,0.1]
[1734974506743,2.95903,3379.5,3379.2,0.1]
[1734974507138,0.7775,3379.7,3379.2,0.1]
[1734974507868,0.03699343,3380.0,3379.2,0.1]
[1734974507869,3.78429,3379.3,3379.2,0.1]
[1734974508071,4.37129032,3379.3,3379.2,0.1]
[1734974508275,5.10431935,3379.3,3379.2,0.1]
[1734974508617,0.8251,3379.3,3379.2,0.1]
[1734974509267,0.8251,3379.9,3379.2,0.1]
[1734974509468,2.9957596,3379.8,3379.2,0.1]
[1734974509637,2.95877,3379.8,3379.2,0.1]
[1734974510153,0.8251,3379.9,3379.2,0.1]
[1734974510721,2.95841,3380.2,3379.2,3.05925]
[1734974510933,2.95841,3380.2,3379.2,3.365175]
[1734974511322,2.95866,3380.0,3379.2,0.1]
[1734974511670,2.9954092,3380.2,3379.2,0.1]
[1734974511958,0.0369892,3380.2,3379.2,0.1]
[1734974512159,2.95862,3380.0,3379.2,0.1]
[1734974512320,0.0369892,3380.2,3379.2,0.1]
[1734974512321,2.95879,3379.8,3379.2,0.1]
[1734974512521,0.03698671,3379.7,3379.2,0.1]
[1734974512742,2.95919,3379.3,3379.2,0.1]
[1734974513737,2.95909,3379.5,3379.2,0.1]
[1734974513954,0.86209535,3379.6,3379.2,0.1]
[1734974514121,0.8251,3379.6,3379.2,0.1]
[1734974514336,3.78404,3379.6,3379.2,0.1]
[1734974514534,4.16614343,3379.6,3379.2,0.1]
[1734974514881,0.8251,3379.6,3379.2,0.1]
[1734974515655,0.55,3379.5,3379.2,0.1]
[1734974515866,2.95919,3379.3,3379.2,0.1]
[1734974516078,0.8251,3379.6,3379.2,0.1]
[1734974516367,0.03699426,3379.5,3379.2,0.1]
[1734974516580,0.8251,3379.6,3379.2,0.1]
[1734974517134,3.78403,3379.6,3379.2,0.1]
[1734974518530,0.8109,3380.0,3379.2,0.1]
[1734974519527,2.95834,3380.3,3379.2,0.1]
[1734974519732,0.37474602,3380.6,3379.2,0.1]
[1734974519733,0.8054,3380.5,3379.5,2.95893]
[1734974520040,3.76355,3380.5,3379.5,0.305893]
[1734974520757,0.8054,3380.5,3379.5,0.305893]
[1734974520959,0.8054,3380.5,3379.3,2.95919]
[1734974521272,0.03698203,3380.4,3379.4,2.95907]
[1734974521442,2.95852,3380.1,3379.2,0.1]
[1734974521770,2.95854,3380.1,3379.2,0.1]
[1734974521932,3.55395612,3380.5,3379.2,0.1]
[1734974522127,2.95831,3380.3,3379.2,0.1]
[1734974522375,2.95875,3379.9,3379.0,0.67553004]
[1734974523067,2.95831,3380.3,3378.6,2.95977]
[1734974523068,0.03699208,3379.8,3378.6,2.95977]
[1734974523284,2.95895,3379.6,3378.4,2.95996]
[1734974523453,2.95895,3379.6,3378.5,2.95981]
[1734974523661,0.03699272,3379.9,3378.6,0.77248481]
[1734974523854,2.95857,3380.0,3378.6,0.77248481]
[1734974524062,2.9589,3379.7,3378.6,0.77248481]
[1734974524390,3.79112,3380.6,3379.5,2.959]
[1734974524886,0.833,3380.6,3379.4,2.74855612]
[1734974525046,0.833,3380.6,3379.5,3.23385561]
[1734974525246,0.03698017,3380.5,3378.8,1.76503806]
[1734974525483,2.78553629,3380.5,3378.8,4.72465806]
[1734974525669,2.95876,3379.8,3378.8,1.76503806]
[1734974525862,2.95831,3380.3,3378.8,1.76503806]
[1734974525863,0.833,3380.1,3378.8,1.76503806]
[1734974526183,2.95894,3379.6,3378.7,2.43937368]
[1734974526750,0.03699296,3379.5,3378.7,2.43937368]
[1734974526975,2.95925,3379.3,3378.7,2.43937368]
[1734974527175,0.7797,3379.5,3378.7,2.43937368]
[1734974527377,0.7797,3379.5,3378.1,2.96021]
[1734974527378,2.95938,3379.1,3378.1,2.96021]
[1734974529469,0.03699758,3379.0,3378.1,2.96021]
[1734974529794,0.03699758,3379.0,3378.1,3.87751443]
[1734974530000,2.95974,3378.7,3377.9,3.4642782]
[1734974530197,0.03700137,3378.6,3377.9,3.4642782]
[1734974530396,0.03700137,3378.6,3377.4,1.76503806]
[1734974530603,2.95997,3378.5,3377.4,1.76503806]
[1734974530797,2.95997,3378.5,3377.4,4.72585806]
[1734974531190,3.79218,3378.9,3377.6,2.96065]
[1734974531191,2.95973,3378.7,3377.6,2.96065]
[1734974531383,2.74855612,3379.4,3377.4,1.00209723]
[1734974531384,2.95936,3379.1,3377.4,3.75065335]
[1734974531569,3.79179,3379.3,3378.2,2.96015]
[1734974531775,2.95938,3379.1,3378.0,2.9603]
[1734974532360,2.95974,3378.7,3377.5,2.44180911]
[1734974532588,2.95954,3378.9,3377.6,0.61924625]
[1734974532792,2.95998,3378.4,3377.5,2.44180911]
[1734974533107,2.96026,3378.1,3377.5,2.44180911]
[1734974533290,2.96052,3377.8,3377.2,1.76503806]
[1734974533491,0.03700841,3378.0,3377.2,1.18233551]
[1734974533661,2.96078,3377.5,3377.2,1.18233551]
[1734974534109,2.96043,3377.9,3377.2,1.18233551]
[1734974534514,0.8275,3378.3,3377.2,1.90794001]
[1734974534713,3.78759,3378.3,3377.2,1.90794001]
[1734974534876,3.78759,3378.3,3377.2,0.7256045]
[1734974534877,0.8275,3378.3,3377.2,0.7256045]
[1734974535070,0.03700777,3378.2,3376.8,2.96129]
[1734974535271,0.03700777,3378.2,3376.0,3.7317]
[1734974535471,0.8275,3378.0,3376.9,0.04068802]
[1734974535717,0.8275,3378.0,3376.0,0.7697]
[1734974535718,0.55,3377.4,3376.0,0.7697]
[1734974535898,2.96165,3376.5,3376.0,0.7697]
[1734974536105,2.96165,3376.5,3376.1,1.223694]
[1734974536623,2.96055,3377.8,3376.6,2.9615]
[1734974536776,2.96016,3378.2,3376.7,2.96147]
[1734974537125,3.75359,3378.4,3377.2,2.96101]
[1734974537328,0.7936,3378.4,3377.2,2.961]
[1734974537476,0.7936,3378.4,3377.3,0.04099958]
[1734974537677,1.75905626,3378.4,3377.3,0.04099958]
[1734974537919,2.96023,3378.2,3377.3,0.04099958]
[1734974538084,2.96031,3378.1,3376.8,2.96138]
[1734974538417,1.72205002,3378.4,3376.8,2.96138]
[1734974538733,0.03701085,3378.3,3376.9,0.04127816]
[1734974538908,2.96036,3378.0,3376.9,0.04127816]
[1734974539088,2.96036,3378.0,3376.9,2.96125]
[1734974539427,2.96036,3378.0,3377.0,0.04050108]
[1734974539624,2.96006,3378.3,3377.1,2.96111]
[1734974539775,0.7936,3378.4,3377.2,0.30016111]
[1734974539979,0.7936,3378.4,3377.3,0.04040127]
[1734974540209,2.96007,3378.3,3377.0,2.74855612]
[1734974540626,2.96007,3378.3,3377.4,0.04032759]
[1734974540790,0.03700843,3378.2,3376.6,2.74855612]
[1734974540992,2.96093,3377.4,3376.1,3.49612162]
[1734974541296,2.96111,3377.2,3376.7,0.04084343]
[1734974541496,2.96111,3377.2,3376.1,3.49617162]
[1734974541825,0.80811896,3377.1,3376.1,0.53421162]
[1734974542043,2.96139,3376.8,3376.2,0.04121201]
[1734974542248,2.96157,3376.6,3375.6,2.96241]
[1734974542546,2.96157,3376.6,3376.3,0.04113828]
[1734974542840,0.7711,3377.1,3375.4,6.21283432]
[1734974542841,2.96129,3376.9,3375.4,6.21283432]
[1734974543053,0.55,3376.7,3376.4,0.04106456]
[1734974543211,0.03703002,3376.6,3375.0,2.74855612]
[1734974543550,2.96178,3376.4,3375.2,2.96277]
[1734974543914,2.96158,3376.6,3375.5,2.96249]
[1734974544439,0.03702577,3377.0,3375.2,2.96272]
[1734974544440,2.96181,3376.4,3375.2,2.96272]
[1734974544639,0.03702933,3376.8,3375.2,2.96272]
[1734974544790,2.9618,3376.4,3375.2,2.96272]
[1734974544995,2.96175,3376.4,3375.3,3.06266]
[1734974545392,2.99884757,3376.3,3375.3,3.06266]
[1734974545590,2.99884757,3376.3,3375.3,3.64378161]
[1734974545840,2.96182,3376.3,3375.3,3.64378161]
[1734974546045,0.02984655,3376.2,3375.3,0.1]
[1734974546542,2.96245,3375.6,3375.3,0.1]
[1734974546750,0.7562,3376.3,3375.3,0.1]
[1734974546910,0.7562,3377.2,3375.3,0.1]
[1734974547110,0.7562,3377.2,3376.0,2.96201]
[1734974547331,0.7562,3377.2,3376.1,0.296201]
[1734974547652,2.96093,3377.4,3376.2,2.9619]
[1734974548344,2.96115,3377.1,3376.1,0.296201]
[1734974548512,0.03702051,3377.0,3376.1,0.296201]
[1734974548713,0.55,3377.5,3376.2,0.03645279]
[1734974548930,0.03702538,3377.4,3376.2,0.03645279]
[1734974549117,2.96145,3376.8,3375.6,2.96236]
[1734974549300,0.03702482,3376.7,3376.3,0.03323729]
[1734974549501,2.96149,3376.7,3375.5,2.96247]
[1734974549747,2.9611,3377.2,3376.1,2.96197]
[1734974550151,2.99819941,3377.1,3376.2,0.03330023]
[1734974550447,2.96172,3376.5,3375.6,0.58110261]
[1734974550598,2.96135,3376.9,3376.3,0.03331196]
[1734974550799,2.96137,3376.9,3375.8,2.96224]
[1734974551163,0.8091,3377.3,3376.4,0.03602653]
[1734974551164,3.77007,3377.3,3376.4,0.03602653]
[1734974551304,2.96097,3377.3,3376.1,2.96194]
[1734974551497,2.96097,3377.3,3376.5,0.03319855]
[1734974551817,2.96132,3376.9,3376.6,0.03590367]
[1734974552145,0.03701861,3377.6,3375.9,0.35433426]
[1734974552146,3.0,3377.5,3375.9,0.35433426]
[1734974552328,2.96109,3377.2,3375.9,0.35433426]
[1734974552530,3.56062022,3377.4,3376.0,0.03627228]
[1734974552837,2.96125,3377.0,3376.0,0.03627228]
[1734974553033,2.96125,3377.0,3376.0,2.99835228]
[1734974553337,0.03701974,3376.9,3376.0,0.03627228]
[1734974553538,2.96198,3376.2,3376.0,0.03627228]
[1734974553759,2.96209,3376.0,3375.3,0.1]
[1734974554056,0.03702914,3376.5,3375.3,0.1]
[1734974554057,2.96192,3376.2,3375.4,0.03382249]
[1734974554236,2.99904929,3376.1,3375.4,0.03382249]
[1734974554409,0.55,3376.8,3375.4,0.03382249]
[1734974554607,2.96184,3376.3,3375.3,3.06267]
[1734974554909,2.96191,3376.2,3375.5,0.03376575]
[1734974555255,2.96243,3375.7,3375.6,0.03370902]
[1734974555419,0.03703537,3375.9,3375.3,0.1]
[1734974555802,2.99924537,3375.9,3375.3,0.1]
[1734974556019,3.33921454,3375.8,3375.3,0.1]
[1734974556251,0.0370373,3375.7,3375.3,0.1]
[1734974556436,2.96261,3375.4,3375.3,0.1]
[1734974556802,3.66411,3375.4,3375.3,0.1]
[1734974557014,7.21411,3375.4,3375.3,0.1]
[1734974557245,0.8015,3376.0,3375.3,0.1]
[1734974557469,0.8015,3376.5,3375.3,0.1]
[1734974557639,0.8015,3376.5,3375.4,0.03052135]
[1734974557640,2.99876204,3376.4,3375.4,0.03052135]
[1734974557840,2.96212,3376.0,3375.4,0.03052135]
[1734974558043,2.96188,3376.3,3375.4,0.03052135]
[1734974558224,0.8016,3376.9,3375.6,2.96236]
[1734974558404,0.8016,3376.9,3375.4,0.33985048]
[1734974558405,0.03702468,3376.8,3375.5,0.03032106]
[1734974558738,0.03702468,3376.8,3375.4,0.30932913]
[1734974558739,2.96183,3376.3,3375.7,0.03238149]
[1734974559061,2.96157,3376.6,3375.8,0.03232882]
[1734974559213,2.96165,3376.5,3375.5,2.96246]
[1734974559408,2.96165,3376.5,3375.6,0.33717891]
[1734974559648,2.96171,3376.5,3375.6,0.33717891]
[1734974559846,2.96171,3376.5,3375.7,0.032104]
[1734974560383,2.96169,3376.5,3375.7,0.032104]
[1734974560535,2.96182,3376.3,3375.7,0.032104]
[1734974560881,0.8016,3376.9,3375.7,0.032104]
[1734974560882,2.96166,3376.5,3375.7,0.032104]
[1734974561067,0.03702842,3376.8,3375.7,0.032104]
[1734974561068,2.96175,3376.4,3375.7,0.36529229]
[1734974561243,0.03702842,3376.8,3375.7,0.032104]
[1734974561444,0.55,3376.6,3375.3,0.1]
[1734974561635,2.96199,3376.1,3375.8,0.03194728]
[1734974561834,2.96213,3376.0,3375.3,0.1]
[1734974562035,0.03703267,3375.9,3375.4,0.03215801]
[1734974562232,2.96173,3376.4,3375.4,0.03215801]
[1734974562233,0.55,3376.2,3375.4,0.03215801]
[1734974562679,2.96186,3376.3,3375.4,0.03215801]
[1734974562833,2.96186,3376.3,3375.5,0.3094798]
[1734974563151,0.0370286,3376.2,3375.6,0.03218558]
[1734974563352,2.96227,3375.8,3375.6,0.03218558]
[1734974563550,0.03703313,3375.7,3375.3,0.1]
[1734974563729,2.96233,3375.8,3375.3,0.1]
[1734974563929,2.9625,3375.6,3375.3,0.1]
[1734974564180,2.9625,3375.6,3375.4,0.03231407]
[1734974564380,2.9625,3375.6,3375.3,0.1]
[1734974565071,2.96231,3375.8,3375.3,0.1]
[1734974565269,0.55,3375.5,3375.4,0.03238344]
[1734974565452,2.96261,3375.4,3375.3,0.1]
[1734974565638,3.51261,3375.4,3375.3,0.1]
[1734974565836,4.32021,3375.4,3375.3,0.1]
[1734974566035,8.348483,3375.4,3375.3,0.1]
[1734974566855,11.481483,3375.4,3375.3,1e-05]
[1734974567380,2.9634,3374.5,3373.2,3.5469382]
[1734974567673,2.9641,3373.7,3373.2,0.1]
[1734974567892,3.55,3374.4,3373.3,0.03289437]
[1734974567893,0.03705772,3373.6,3373.3,0.03289437]
[1734974568041,3.51388,3374.0,3373.2,0.1]
[1734974568243,2.96285,3375.2,3373.3,0.0307176]
[1734974568244,2.96296,3375.1,3373.3,0.0307176]
[1734974568441,0.55,3374.8,3373.6,2.9641]
[1734974568670,2.96314,3374.8,3373.7,0.03082294]
[1734974569042,0.03704755,3375.0,3373.4,0.28792737]
[1734974569248,0.55,3374.9,3373.5,0.0331185]
[1734974569480,2.96362,3374.3,3373.5,0.0331185]
[1734974569658,2.96362,3374.3,3373.5,0.3500787]
[1734974569868,2.96366,3374.2,3373.5,0.0331185]
[1734974570097,2.9635,3374.4,3373.2,2.84855612]
[1734974570303,3.55,3374.9,3373.6,2.96417]
[1734974570601,3.55,3374.9,3373.5,2.9642]
[1734974570602,3.0,3374.8,3373.5,2.9642]
[1734974570898,0.0370466,3374.8,3373.6,0.63269075]
[1734974571200,2.96341,3374.5,3373.6,0.03295008]
[1734974571499,2.96341,3374.5,3373.3,5.96444]
[1734974571647,2.96341,3374.5,3373.7,0.03293204]
[1734974571849,2.96341,3374.5,3373.4,2.96436]
[1734974572193,2.96357,3374.3,3373.8,0.0328793]
[1734974572371,0.55,3374.9,3373.3,3.0]
[1734974572372,3.00074106,3374.2,3373.3,3.0]
[1734974572582,0.03705111,3374.6,3373.9,0.03063812]
[1734974572788,2.96349,3374.4,3373.4,0.88130761]
[1734974572983,0.03705038,3374.3,3374.0,0.0327854]
[1734974573190,0.03705038,3374.3,3373.2,2.84855612]
[1734974573191,3.00067038,3374.3,3373.2,2.84855612]
[1734974573374,3.00067038,3374.3,3374.1,0.03273845]
[1734974573375,3.81372704,3374.2,3374.1,0.03273845]
[1734974573700,3.81372704,3374.2,3373.2,0.1]
[1734974573701,2.96436,3373.5,3373.2,0.1]
[1734974573851,0.55,3373.7,3373.2,0.1]
[1734974574053,2.96426,3373.6,3373.2,0.1]
[1734974574386,3.0014101,3373.5,3373.3,0.03320665]
[1734974574747,3.31949101,3373.5,3373.2,0.1]
[1734974574971,3.30006704,3374.2,3373.2,0.1]
[1734974574972,3.0,3374.3,3373.3,2.96444]
[1734974575184,4.33672,3374.7,3373.2,3.06454]
[1734974575368,2.96349,3374.4,3373.4,0.03315389]
[1734974575569,0.03705255,3374.3,3373.3,0.03320665]
[1734974575800,2.96408,3373.8,3373.5,0.03310114]
[1734974576028,0.03705963,3373.7,3373.2,0.1]
[1734974576555,2.96395,3373.9,3373.2,0.1]
[1734974576752,2.96377,3374.1,3373.3,0.03099287]
[1734974576973,3.72228,3374.3,3373.3,0.03099287]
[1734974577169,3.72228,3374.3,3373.3,0.34055316]
[1734974577412,0.0370545,3374.2,3373.3,0.34055316]
[1734974577903,0.79575449,3374.3,3373.3,0.34055316]
[1734974578111,0.03705449,3374.3,3373.3,0.03099287]
[1734974578471,2.96287,3375.1,3373.3,0.03099287]
[1734974578670,2.74855612,3375.8,3373.3,0.03099287]
[1734974578671,0.03704745,3375.0,3373.4,2.96436]
[1734974578904,0.03704745,3375.0,3373.4,0.03094363]
[1734974579059,2.96366,3374.2,3373.4,0.03094363]
[1734974579264,2.96366,3374.2,3373.2,0.1]
[1734974579607,2.96317,3374.8,3373.5,0.03199513]
[1734974579754,2.96317,3374.8,3373.3,0.306455]
[1734974579755,3.00021843,3374.8,3373.3,0.306455]
[1734974579957,3.00021843,3374.8,3373.6,0.03194591]
[1734974580212,2.96323,3374.7,3373.7,2.96406]
[1734974580390,3.00027843,3374.7,3373.7,0.03189668]
[1734974580565,2.96323,3374.7,3373.7,0.03189668]
[1734974580758,2.96323,3374.7,3373.7,0.29960667]
[1734974580960,2.96323,3374.7,3373.8,0.03184746]
[1734974581370,0.03704843,3374.6,3373.8,0.03184746]
[1734974581659,2.96341,3374.5,3373.4,2.96433]
[1734974581976,0.788,3375.6,3373.9,2.78030038]
[1734974582170,3.75046,3375.6,3374.0,0.57442904]
[1734974582372,2.96246,3375.6,3374.4,2.96347]
[1734974582687,2.96246,3375.6,3374.0,3.57218801]
[1734974582688,0.788,3376.0,3374.5,0.03144899]
[1734974582892,0.82503538,3376.0,3374.5,0.03144899]
[1734974583067,2.9629,3375.1,3374.0,6.53817904]
[1734974583264,0.03704215,3375.8,3374.6,0.03126486]
[1734974583467,2.96286,3375.2,3374.1,0.92867352]
[1734974583685,2.96243,3375.6,3374.7,0.03096743]
[1734974583686,2.96288,3375.1,3374.7,0.03096743]
[1734974584026,2.96268,3375.4,3374.3,2.96351]
[1734974584228,2.96245,3375.6,3374.8,0.03091823]
[1734974584544,2.9626,3375.5,3374.1,0.92867352]
[1734974584979,3.7788,3375.9,3374.4,2.9634]
[1734974584980,0.03703874,3375.8,3374.4,2.9634]
[1734974585182,0.03703874,3375.8,3374.2,0.03336204]
[1734974585183,5.96223,3375.9,3374.3,2.74855612]
[1734974585418,5.96223,3375.9,3374.7,2.96316]
[1734974585621,3.0,3375.6,3374.8,2.96305]
[1734974585786,3.8075,3376.3,3374.9,0.296305]
[1734974586137,2.96227,3375.8,3374.7,2.96315]
[1734974586281,3.0,3375.7,3374.7,2.96315]
[1734974586481,3.0,3375.7,3374.8,0.0329995]
[1734974586688,2.96235,3375.7,3374.8,0.0329995]
[1734974587008,0.7561,3375.5,3374.8,0.0329995]
[1734974587180,2.96305,3374.9,3374.8,0.0329995]
[1734974587548,2.9591248,3374.9,3373.9,2.96392]
[1734974587727,2.9591248,3374.9,3374.0,0.296392]
[1734974587884,2.9591248,3374.9,3374.0,0.33300943]
[1734974588083,0.0370451,3374.9,3374.0,0.03661743]
[1734974588310,2.96347,3374.5,3373.4,2.96433]
[1734974588528,0.03704678,3374.4,3374.1,0.03375636]
[1734974588723,2.96366,3374.3,3373.2,3.16453]
[1734974588924,0.03705036,3374.2,3373.3,0.59130861]
[1734974589237,3.00076036,3374.2,3373.3,0.59130861]
[1734974589522,0.03705036,3374.2,3373.2,0.2]
[1734974589698,2.96418,3373.7,3373.2,0.2]
[1734974589908,2.96444,3373.4,3373.2,0.2]
[1734974590677,0.8306,3373.8,3373.2,0.2]
[1734974591035,3.0,3374.4,3373.2,0.2]
[1734974591036,0.86765888,3374.3,3373.2,0.2]
[1734974591248,1.55077577,3374.3,3373.2,0.2]
[1734974591442,2.96392,3374.0,3373.2,0.2]
[1734974591601,3.0,3373.9,3373.2,0.2]
[1734974592247,2.96392,3374.0,3373.2,0.2]
[1734974592742,3.00102465,3373.9,3373.2,0.2]
[1734974592950,2.9642,3373.6,3373.2,0.2]
[1734974593294,3.00133761,3373.5,3373.2,0.2]
[1734974593530,2.96411,3373.7,3373.2,0.2]
[1734974593726,2.96411,3373.7,3373.3,0.03176712]
[1734974594050,0.03705759,3373.7,3373.3,0.03176712]
[1734974594194,2.96416,3373.7,3373.3,0.03176712]
[1734974594396,3.7725,3373.5,3373.2,0.2]
[1734974594596,5.96445,3373.3,3373.2,0.2]